Workbook

Sheet Jahresbestenwertung
B1: Jahreswertung 2019
C2: Pokal | D2: Brückmann | E2: M-Kierek | F2: Jubil. | G2: L-Sinner | H2: Chef | I2: Haupt | J2: Gesamt | K2: Wertung | L2: Nadel | M2: Goldenes
A3: Rg. | B3: Vj. | C3: Reihenfolge | D3: 1 | E3: 2 | F3: 3 | G3: 4 | H3: 5 | I3: 6 | M3: Gewehr
C4: Monat | D4: April | E4: April | F4: Sept. | G4: Sept. | H4: Sept. | I4: Nov. | J4: Ergebnis
A5: =RANK(K5,$K$5:$K$38) ->  | B5: 1 | C5: Benno Sommer | D5: =Brückmann!K2 -> 48 | E5: ='Max Kierek'!K2 -> 54 | F5: =Jubiläums!K2 -> 50 | G5: ='Leo Sinner'!K2 -> 50 | H5: =Chef!K2 -> 51 | I5: =Hauptm.!K2 -> 46 | J5: =SUM(D5:I5) -> 299 | K5: =SUM(D5:I5)-(SMALL(D5:I5,1)+(SMALL(D5:I5,2))) -> 205 | L5: =IF(K5>=210,"Gold",IF(K5>=200,"Silber",IF(K5>=185,"Bronze",""))) -> Silber | M5: 2001
B6: 2 | C6: Brian Gremler | D6: =Brückmann!K3 -> 53 | E6: ='Max Kierek'!K3 -> 54 | F6: =Jubiläums!K3 -> 52 | G6: ='Leo Sinner'!K3 -> 52 | H6: =Chef!K3 -> 49 | I6: =Hauptm.!K3 -> 52 | J6: 312 | K6: 211 | L6: Gold | M6: 2001
B7: 3 | C7: Frank Holz | D7: =Brückmann!K4 -> 55 | E7: ='Max Kierek'!K4 -> 53 | F7: =Jubiläums!K4 -> 52 | G7: ='Leo Sinner'!K4 -> 52 | H7: =Chef!K4 -> 56 | I7: =Hauptm.!K4 -> 49 | J7: 317 | K7: 216 | L7: Gold | M7: 1999
B8: 4 | C8: Christian Breuer | D8: =Brückmann!K5 -> 0 | E8: ='Max Kierek'!K5 -> 0 | F8: =Jubiläums!K5 -> 0 | G8: ='Leo Sinner'!K5 -> 0 | H8: =Chef!K5 -> 0 | I8: =Hauptm.!#REF! ->  | M8: 1999
B9: 5 | C9: Rüdiger Winter | D9: =Brückmann!K6 -> 0 | E9: ='Max Kierek'!K6 -> 0 | F9: =Jubiläums!K6 -> 0 | G9: ='Leo Sinner'!K6 -> 0 | H9: =Chef!K6 -> 0 | I9: =Hauptm.!K5 -> 40 | J9: 40 | K9: 40 | M9: 1998
B10: 6 | C10: Patric Mende | D10: =Brückmann!K7 -> 54 | E10: ='Max Kierek'!K7 -> 54 | F10: =Jubiläums!K7 -> 54 | G10: ='Leo Sinner'!K7 -> 47 | H10: =Chef!K7 -> 41 | I10: =Hauptm.!K6 -> 52 | J10: 302 | K10: 214 | L10: Gold | M10: 2012
B11: 7 | C11: Peter Gremler | D11: =Brückmann!K8 -> 50 | E11: ='Max Kierek'!K8 -> 41 | F11: =Jubiläums!K8 -> 45 | G11: ='Leo Sinner'!K8 -> 50 | H11: =Chef!K8 -> 46 | I11: =Hauptm.!K7 -> 44 | J11: 276 | K11: 191 | L11: Bronze | M11: 1999
B12: 8 | C12: Pascal Weber | D12: =Brückmann!#REF! ->  | E12: ='Max Kierek'!K9 -> 55 | F12: =Jubiläums!#REF! ->  | G12: ='Leo Sinner'!K9 -> 50 | H12: =Chef!K9 -> 47 | I12: =Hauptm.!K8 -> 49 | M12: 2007
B13: 9 | C13: Stefan Sommer | D13: =Brückmann!K9 -> 50 | E13: ='Max Kierek'!K10 -> 49 | F13: =Jubiläums!K9 -> 50 | G13: ='Leo Sinner'!K10 -> 48 | H13: =Chef!K10 -> 44 | I13: =Hauptm.!K9 -> 53 | J13: 294 | K13: 202 | L13: Silber | M13: 2015
B14: 10 | C14: Thomas Schleese | D14: =Brückmann!K10 -> 43 | E14: ='Max Kierek'!K11 -> 0 | F14: =Jubiläums!K10 -> 44 | G14: ='Leo Sinner'!K11 -> 47 | H14: =Chef!K11 -> 43 | I14: =Hauptm.!K10 -> 0 | J14: 177 | K14: 177 | M14: 2015
B15: 10 | C15: Robert Finkentey | D15: =Brückmann!K11 -> 0 | E15: ='Max Kierek'!K12 -> 41 | F15: =Jubiläums!K11 -> 44 | G15: ='Leo Sinner'!K12 -> 55 | H15: =Chef!K12 -> 50 | I15: =Hauptm.!K11 -> 55 | J15: 245 | K15: 204 | L15: Silber | M15: 2018
B16: 12 | C16: Dennis Sommer | D16: =Brückmann!K12 -> 50 | E16: ='Max Kierek'!K13 -> 0 | F16: =Jubiläums!K12 -> 52 | G16: ='Leo Sinner'!K13 -> 0 | H16: =Chef!K13 -> 0 | I16: =Hauptm.!K12 -> 0 | J16: 102 | K16: 102 | M16: 2003
B17: 13 | C17: Theo Hansen | D17: =Brückmann!#REF! ->  | E17: ='Max Kierek'!#REF! ->  | F17: =Jubiläums!#REF! ->  | G17: ='Leo Sinner'!K14 -> 0 | H17: =Chef!K14 -> 0 | I17: =Hauptm.!K13 -> 44 | M17: 1999
B18: 14 | C18: Manfred Weber | D18: =Brückmann!K13 -> 0 | E18: ='Max Kierek'!K14 -> 0 | F18: =Jubiläums!K13 -> 0 | G18: ='Leo Sinner'!K15 -> 41 | H18: =Chef!K15 -> 35 | I18: =Hauptm.!K14 -> 0 | J18: 76 | K18: 76 | M18: 1998
B19: 15 | C19: Werner Schumacher | D19: =Brückmann!K14 -> 0 | E19: ='Max Kierek'!K15 -> 38 | F19: =Jubiläums!K14 -> 0 | G19: ='Leo Sinner'!K16 -> 44 | H19: =Chef!K16 -> 46 | I19: =Hauptm.!K15 -> 0 | J19: 128 | K19: 128 | M19: 1999
B20: 16 | C20: Michael Deutenberg | D20: =Brückmann!K15 -> 31 | E20: ='Max Kierek'!K16 -> 44 | F20: =Jubiläums!K15 -> 44 | G20: ='Leo Sinner'!K17 -> 44 | H20: =Chef!K17 -> 44 | I20: =Hauptm.!K16 -> 0 | J20: 207 | K20: 176 | M20: 2000
B21: 17 | C21: Manfred Hofmann | D21: =Brückmann!K16 -> 46 | E21: ='Max Kierek'!K17 -> 47 | F21: =Jubiläums!K16 -> 37 | G21: ='Leo Sinner'!K18 -> 0 | H21: =Chef!K18 -> 0 | I21: =Hauptm.!K17 -> 0 | J21: 130 | K21: 130 | M21: 1999
B22: 18 | C22: Sascha Hofmann | D22: =Brückmann!K17 -> 44 | E22: ='Max Kierek'!K18 -> 0 | F22: =Jubiläums!K17 -> 47 | G22: ='Leo Sinner'!K19 -> 0 | H22: =Chef!K19 -> 0 | I22: =Hauptm.!K18 -> 0 | J22: 91 | K22: 91
B23: 19 | C23: Gerhard Holz | D23: =Brückmann!K18 -> 0 | E23: ='Max Kierek'!K19 -> 0 | F23: =Jubiläums!K18 -> 0 | G23: ='Leo Sinner'!K20 -> 0 | H23: =Chef!K20 -> 0 | I23: =Hauptm.!K19 -> 0 | J23: 0 | K23: 0 | M23: 1998
B24: 19 | C24: Jörg Krieg | D24: =Brückmann!K19 -> 0 | E24: ='Max Kierek'!K20 -> 0 | F24: =Jubiläums!K19 -> 0 | G24: ='Leo Sinner'!K21 -> 0 | H24: =Chef!K21 -> 0 | I24: =Hauptm.!K20 -> 0 | J24: 0 | K24: 0 | M24: 1999
B25: 19 | C25: Martin Sieg | D25: =Brückmann!K20 -> 0 | E25: ='Max Kierek'!K21 -> 0 | F25: =Jubiläums!K20 -> 0 | G25: ='Leo Sinner'!K22 -> 0 | H25: =Chef!K22 -> 0 | I25: =Hauptm.!K21 -> 0 | J25: 0 | K25: 0 | M25: 2000
B26: 19 | C26: Kai Schindler | D26: =Brückmann!K21 -> 0 | E26: ='Max Kierek'!K22 -> 0 | F26: =Jubiläums!K21 -> 0 | G26: ='Leo Sinner'!K23 -> 0 | H26: =Chef!K23 -> 0 | I26: =Hauptm.!K22 -> 0 | J26: 0 | K26: 0 | M26: 2010
B27: 19 | C27: Manfred Schindler | D27: =Brückmann!K22 -> 0 | E27: ='Max Kierek'!K23 -> 0 | F27: =Jubiläums!K22 -> 0 | G27: ='Leo Sinner'!K24 -> 0 | H27: =Chef!K24 -> 0 | I27: =Hauptm.!K23 -> 0 | J27: 0 | K27: 0 | M27: 1998
B28: 19 | C28: Frank Sommer | D28: =Brückmann!K23 -> 0 | E28: ='Max Kierek'!K24 -> 0 | F28: =Jubiläums!K23 -> 0 | G28: ='Leo Sinner'!K25 -> 0 | H28: =Chef!K25 -> 0 | I28: =Hauptm.!K24 -> 0 | J28: 0 | K28: 0 | M28: 1998
B29: 19 | C29: Friedel Deutenberg | D29: =Brückmann!#REF! ->  | E29: ='Max Kierek'!#REF! ->  | F29: =Jubiläums!#REF! ->  | G29: ='Leo Sinner'!K26 -> 0 | H29: =Chef!K26 -> 0 | I29: =Hauptm.!K25 -> 0 | M29: 1999
B30: 19 | C30: Hermann v d Bey | D30: =Brückmann!K24 -> 0 | E30: ='Max Kierek'!K25 -> 0 | F30: =Jubiläums!K24 -> 0 | G30: ='Leo Sinner'!K27 -> 0 | H30: =Chef!K27 -> 0 | I30: =Hauptm.!K26 -> 0 | J30: 0 | K30: 0 | M30: 2001
B31: 19 | C31: Gerd Weber | D31: =Brückmann!K25 -> 0 | E31: ='Max Kierek'!K26 -> 0 | F31: =Jubiläums!K25 -> 0 | G31: ='Leo Sinner'!K28 -> 42 | H31: =Chef!K28 -> 45 | I31: =Hauptm.!K27 -> 42 | J31: 129 | K31: 129 | M31: 2000
B32: 19 | C32: Fabian Grönke | D32: =Brückmann!K26 -> 0 | E32: ='Max Kierek'!K27 -> 0 | F32: =Jubiläums!K26 -> 0 | G32: ='Leo Sinner'!K29 -> 0 | H32: =Chef!K29 -> 0 | I32: =Hauptm.!K28 -> 0 | J32: 0 | K32: 0
B33: 19 | C33: Kevin Sieg | D33: =Brückmann!K27 -> 0 | E33: ='Max Kierek'!K28 -> 47 | F33: =Jubiläums!K27 -> 0 | G33: ='Leo Sinner'!#REF! ->  | H33: =Chef!#REF! ->  | I33: =Hauptm.!#REF! -> 
B34: 19 | D34: =Brückmann!#REF! ->  | E34: ='Max Kierek'!K29 -> 0 | F34: =Jubiläums!K28 -> 44 | G34: ='Leo Sinner'!#REF! ->  | H34: =Chef!#REF! ->  | I34: =Hauptm.!#REF! -> 
B35: 19 | D35: =Brückmann!K28 -> 47 | E35: ='Max Kierek'!#REF! ->  | F35: =Jubiläums!#REF! ->  | G35: ='Leo Sinner'!#REF! ->  | H35: =Chef!#REF! ->  | I35: =Hauptm.!#REF! -> 
B36: 19 | C36: Stefan Schmidt | D36: =Brückmann!#REF! ->  | E36: ='Max Kierek'!#REF! ->  | F36: =Jubiläums!#REF! ->  | G36: ='Leo Sinner'!#REF! ->  | H36: =Chef!#REF! ->  | I36: =Hauptm.!#REF! -> 
B37: 19 | C37: Rolf Fischer | D37: =Brückmann!#REF! ->  | E37: ='Max Kierek'!#REF! ->  | F37: =Jubiläums!#REF! ->  | G37: ='Leo Sinner'!#REF! ->  | H37: =Chef!#REF! ->  | I37: =Hauptm.!#REF! ->  | M37: 2006
B38: 19 | C38: Bernd Karbach | D38: =Brückmann!K29 -> 0 | E38: ='Max Kierek'!#REF! ->  | F38: =Jubiläums!K29 -> 0 | G38: ='Leo Sinner'!#REF! ->  | H38: =Chef!#REF! ->  | I38: =Hauptm.!#REF! -> 
C41: Gesamt | D41: =SUM(D5:D38) ->  | E41: =SUM(E5:E38) -> 
C42: Schützen | D42: =COUNTIF(D5:D38,">0") -> 12 | E42: =COUNTIF(E5:E38,">0") -> 12 | F42: 13 | G42: 13 | H42: 13 | I42: 11 | J42: 16 | K42: =SUM(E42:I42)-MIN(E42:I42) -> 51
C43: Schnitt | D43: =D41/D42 ->  | K43: =K41/K42 -> 
C45: Wertungsergebnis: | D45: 210 Ringe | E45: goldene | F45: Nadel | G45: Legende: | J45: fett | K45: Sieger
D46: 200 Ringe | E46: silberne | F46: Nadel | J46: normal | K46: Ergebnis
D47: 185 Ringe | E47: bronzene | F47: Nadel | J47: kursiv | K47: vor bzw.
K48: nachgeschossen
C49: Stand | D49: =TODAY() -> 2022-12-05

Sheet Brückmann
A1: Lfd. Nr. | B1: Name | C1: Schüsse aufgelegt | angelegt |stechen | K1: ∑ | L1: Bemerkungen (Stechen)
A2: 1 | B2: =Jahresbestenwertung!C5 -> Benno Sommer | C2: 9 | D2: 8 | E2: 6 | F2: 10 | G2: 8 | H2: 7 | K2: =SUM(C2:H2) -> 48
A3: 2 | B3: =Jahresbestenwertung!C6 -> Brian Gremler | C3: 9 | D3: 9 | E3: 8 | F3: 9 | G3: 9 | H3: 9 | K3: 53 | L3: 3
A4: 3 | B4: =Jahresbestenwertung!C7 -> Frank Holz | C4: 9 | D4: 9 | E4: 9 | F4: 10 | G4: 9 | H4: 9 | K4: 55 | L4: 1
A5: 4 | B5: =Jahresbestenwertung!C8 -> Christian Breuer | K5: 0
A6: 5 | B6: =Jahresbestenwertung!C9 -> Rüdiger Winter | K6: 0
A7: 6 | B7: =Jahresbestenwertung!C10 -> Patric Mende | C7: 10 | D7: 9 | E7: 7 | F7: 10 | G7: 10 | H7: 8 | K7: 54 | L7: 2
A8: 7 | B8: =Jahresbestenwertung!C11 -> Peter Gremler | C8: 9 | D8: 9 | E8: 8 | F8: 9 | G8: 8 | H8: 7 | K8: 50
A9: 8 | B9: =Jahresbestenwertung!C13 -> Stefan Sommer | C9: 10 | D9: 8 | E9: 5 | F9: 10 | G9: 9 | H9: 8 | K9: 50
A10: 9 | B10: =Jahresbestenwertung!C14 -> Thomas Schleese | C10: 9 | D10: 8 | E10: 7 | F10: 8 | G10: 8 | H10: 3 | K10: 43
A11: 10 | B11: =Jahresbestenwertung!C15 -> Robert Finkentey | K11: 0
A12: 11 | B12: =Jahresbestenwertung!C16 -> Dennis Sommer | C12: 10 | D12: 9 | E12: 8 | F12: 8 | G12: 8 | H12: 7 | K12: 50
A13: 12 | B13: =Jahresbestenwertung!C18 -> Manfred Weber | K13: 0
A14: 13 | B14: =Jahresbestenwertung!C19 -> Werner Schumacher | K14: 0
A15: 14 | B15: =Jahresbestenwertung!C20 -> Michael Deutenberg | C15: 10 | D15: 8 | E15: 8 | F15: 3 | G15: 2 | H15: 0 | K15: 31
A16: 15 | B16: =Jahresbestenwertung!C21 -> Manfred Hofmann | C16: 8 | D16: 8 | E16: 7 | F16: 9 | G16: 7 | H16: 7 | K16: 46
A17: 16 | B17: =Jahresbestenwertung!C22 -> Sascha Hofmann | C17: 8 | D17: 7 | E17: 6 | F17: 8 | G17: 9 | H17: 6 | K17: 44
A18: 17 | B18: =Jahresbestenwertung!C23 -> Gerhard Holz | K18: 0
A19: 18 | B19: =Jahresbestenwertung!C24 -> Jörg Krieg | K19: 0
A20: 19 | B20: =Jahresbestenwertung!C25 -> Martin Sieg | K20: 0
A21: 20 | B21: =Jahresbestenwertung!C26 -> Kai Schindler | K21: 0
A22: 21 | B22: =Jahresbestenwertung!C27 -> Manfred Schindler | K22: 0
A23: 22 | B23: =Jahresbestenwertung!C28 -> Frank Sommer | K23: 0
A24: 23 | B24: =Jahresbestenwertung!C30 -> Hermann v d Bey | K24: 0
A25: 24 | B25: =Jahresbestenwertung!C31 -> Gerd Weber | K25: 0
A26: 25 | B26: =Jahresbestenwertung!C32 -> Fabian Grönke | K26: 0
A27: 26 | B27: =Jahresbestenwertung!C33 -> Kevin Sieg | K27: 0
A28: 27 | B28: Nicolas Gawlita | C28: 9 | D28: 8 | E28: 8 | F28: 9 | G28: 7 | H28: 6 | K28: 47
A29: 28 | B29: =Jahresbestenwertung!C38 -> Bernd Karbach | K29: 0

Sheet Max Kierek
A1: Lfd. Nr. | B1: Name | C1: Schüsse aufgelegt | angelegt |stechen | K1: ∑ | L1: Bemerkungen (Stechen)
A2: 1 | B2: =Jahresbestenwertung!C5 -> Benno Sommer | C2: 10 | D2: 8 | E2: 9 | F2: 9 | G2: 9 | H2: 9 | K2: 54 | L2: 2
A3: 2 | B3: =Jahresbestenwertung!C6 -> Brian Gremler | C3: 9 | D3: 9 | E3: 9 | F3: 8 | G3: 9 | H3: 10 | K3: =SUM(C3:H3) -> 54 | L3: 2
A4: 3 | B4: =Jahresbestenwertung!C7 -> Frank Holz | C4: 9 | D4: 9 | E4: 8 | F4: 9 | G4: 9 | H4: 9 | K4: 53 | L4: 3
A5: 4 | B5: =Jahresbestenwertung!C8 -> Christian Breuer | K5: 0
A6: 5 | B6: =Jahresbestenwertung!C9 -> Rüdiger Winter | K6: 0
A7: 6 | B7: =Jahresbestenwertung!C10 -> Patric Mende | C7: 9 | D7: 9 | E7: 9 | F7: 9 | G7: 9 | H7: 9 | K7: 54 | L7: 2
A8: 7 | B8: =Jahresbestenwertung!C11 -> Peter Gremler | C8: 8 | D8: 7 | E8: 2 | F8: 8 | G8: 8 | H8: 8 | K8: 41
A9: 8 | B9: =Jahresbestenwertung!C13 -> Stefan Sommer | C9: 10 | D9: 9 | E9: 9 | F9: 10 | G9: 9 | H9: 8 | K9: 55 | L9: 1
A10: 9 | B10: =Jahresbestenwertung!C14 -> Thomas Schleese | C10: 10 | D10: 9 | E10: 7 | F10: 9 | G10: 8 | H10: 6 | K10: 49
A11: 10 | B11: =Jahresbestenwertung!C15 -> Robert Finkentey | K11: 0
A12: 11 | B12: =Jahresbestenwertung!C16 -> Dennis Sommer | C12: 8 | D12: 8 | E12: 7 | F12: 7 | G12: 7 | H12: 4 | K12: 41
A13: 12 | B13: =Jahresbestenwertung!C18 -> Manfred Weber | K13: 0
A14: 13 | B14: =Jahresbestenwertung!C19 -> Werner Schumacher | K14: 0
A15: 14 | B15: =Jahresbestenwertung!C20 -> Michael Deutenberg | C15: 10 | D15: 8 | E15: 1 | F15: 7 | G15: 7 | H15: 5 | K15: 38
A16: 15 | B16: =Jahresbestenwertung!C21 -> Manfred Hofmann | C16: 8 | D16: 5 | E16: 5 | F16: 10 | G16: 8 | H16: 8 | K16: 44
A17: 16 | B17: =Jahresbestenwertung!C22 -> Sascha Hofmann | C17: 10 | D17: 9 | E17: 7 | F17: 8 | G17: 7 | H17: 6 | K17: 47
A18: 17 | B18: =Jahresbestenwertung!C23 -> Gerhard Holz | K18: 0
A19: 18 | B19: =Jahresbestenwertung!C24 -> Jörg Krieg | K19: 0
A20: 19 | B20: =Jahresbestenwertung!C25 -> Martin Sieg | K20: 0
A21: 20 | B21: =Jahresbestenwertung!C26 -> Kai Schindler | K21: 0
A22: 21 | B22: =Jahresbestenwertung!C27 -> Manfred Schindler | K22: 0
A23: 22 | B23: =Jahresbestenwertung!C28 -> Frank Sommer | K23: 0
A24: 23 | B24: =Jahresbestenwertung!C30 -> Hermann v d Bey | K24: 0
A25: 24 | B25: =Jahresbestenwertung!C31 -> Gerd Weber | K25: 0
A26: 25 | B26: =Jahresbestenwertung!C32 -> Fabian Grönke | K26: 0
A27: 26 | B27: =Jahresbestenwertung!C33 -> Kevin Sieg | K27: 0
A28: 27 | B28: Nicolas Gawlita | C28: 10 | D28: 8 | E28: 7 | F28: 8 | G28: 8 | H28: 6 | K28: 47
A29: 28 | B29: =Jahresbestenwertung!C38 -> Bernd Karbach | K29: 0

Sheet Jubiläums
A1: Lfd. Nr. | B1: Name | C1: Schüsse aufgelegt | angelegt |stechen | K1: ∑ | L1: Bemerkungen (Stechen)
A2: 1 | B2: =Jahresbestenwertung!C5 -> Benno Sommer | C2: 8 | D2: 8 | E2: 9 | F2: 8 | G2: 8 | H2: 9 | K2: 50
A3: 2 | B3: =Jahresbestenwertung!C6 -> Brian Gremler | C3: 10 | D3: 9 | E3: 6 | F3: 10 | G3: 9 | H3: 8 | K3: =SUM(C3:H3) -> 52
A4: 3 | B4: =Jahresbestenwertung!C7 -> Frank Holz | C4: 10 | D4: 9 | E4: 7 | F4: 10 | G4: 9 | H4: 7 | K4: =SUM(C4:H4) -> 52
A5: 4 | B5: =Jahresbestenwertung!C8 -> Christian Breuer | K5: 0
A6: 5 | B6: =Jahresbestenwertung!C9 -> Rüdiger Winter | K6: 0
A7: 6 | B7: =Jahresbestenwertung!C10 -> Patric Mende | C7: 10 | D7: 9 | E7: 8 | F7: 10 | G7: 9 | H7: 8 | K7: 54
A8: 7 | B8: =Jahresbestenwertung!C11 -> Peter Gremler | C8: 10 | D8: 7 | E8: 3 | F8: 9 | G8: 8 | H8: 8 | K8: 45
A9: 8 | B9: =Jahresbestenwertung!C13 -> Stefan Sommer | C9: 10 | D9: 9 | E9: 9 | F9: 9 | G9: 8 | H9: 5 | K9: 50
A10: 9 | B10: =Jahresbestenwertung!C14 -> Thomas Schleese | C10: 8 | D10: 5 | E10: 5 | F10: 9 | G10: 9 | H10: 8 | K10: 44
A11: 10 | B11: =Jahresbestenwertung!C15 -> Robert Finkentey | C11: 7 | D11: 7 | E11: 6 | F11: 10 | G11: 7 | H11: 7 | K11: 44
A12: 11 | B12: =Jahresbestenwertung!C16 -> Dennis Sommer | C12: 10 | D12: 8 | E12: 7 | F12: 9 | G12: 10 | H12: 8 | K12: 52
A13: 12 | B13: =Jahresbestenwertung!C18 -> Manfred Weber | K13: 0
A14: 13 | B14: =Jahresbestenwertung!C19 -> Werner Schumacher | K14: 0
A15: 14 | B15: =Jahresbestenwertung!C20 -> Michael Deutenberg | C15: 10 | D15: 9 | E15: 8 | F15: 9 | G15: 8 | H15: 0 | K15: 44
A16: 15 | B16: =Jahresbestenwertung!C21 -> Manfred Hofmann | C16: 10 | D16: 7 | E16: 5 | F16: 6 | G16: 6 | H16: 3 | K16: 37
A17: 16 | B17: =Jahresbestenwertung!C22 -> Sascha Hofmann | C17: 9 | D17: 9 | E17: 7 | F17: 9 | G17: 7 | H17: 6 | K17: 47
A18: 17 | B18: =Jahresbestenwertung!C23 -> Gerhard Holz | K18: 0
A19: 18 | B19: =Jahresbestenwertung!C24 -> Jörg Krieg | K19: 0
A20: 19 | B20: =Jahresbestenwertung!C25 -> Martin Sieg | K20: 0
A21: 20 | B21: =Jahresbestenwertung!C26 -> Kai Schindler | K21: 0
A22: 21 | B22: =Jahresbestenwertung!C27 -> Manfred Schindler | K22: 0
A23: 22 | B23: =Jahresbestenwertung!C28 -> Frank Sommer | K23: 0
A24: 23 | B24: =Jahresbestenwertung!C30 -> Hermann v d Bey | K24: 0
A25: 24 | B25: =Jahresbestenwertung!C31 -> Gerd Weber | K25: 0
A26: 25 | B26: =Jahresbestenwertung!C32 -> Fabian Grönke | K26: 0
A27: 26 | B27: =Jahresbestenwertung!C33 -> Kevin Sieg | K27: 0
A28: 27 | B28: Nicolas Gawlita | C28: 7 | D28: 7 | E28: 5 | F28: 10 | G28: 8 | H28: 7 | K28: 44
A29: 28 | B29: =Jahresbestenwertung!C38 -> Bernd Karbach | K29: 0

Sheet Leo Sinner
A1: Lfd. Nr. | B1: Name | C1: Schüsse aufgelegt | angelegt |stechen | K1: ∑ | L1: Bemerkungen (Stechen)
A2: 1 | B2: =Jahresbestenwertung!C5 -> Benno Sommer | C2: 9 | D2: 9 | E2: 6 | F2: 10 | G2: 10 | H2: 6 | K2: 50
A3: 2 | B3: =Jahresbestenwertung!C6 -> Brian Gremler | C3: 10 | D3: 9 | E3: 8 | F3: 9 | G3: 8 | H3: 8 | K3: =SUM(C3:H3) -> 52
A4: 3 | B4: =Jahresbestenwertung!C7 -> Frank Holz | C4: 9 | D4: 9 | E4: 9 | F4: 10 | G4: 8 | H4: 7 | K4: 52
A5: 4 | B5: =Jahresbestenwertung!C8 -> Christian Breuer | K5: 0
A6: 5 | B6: =Jahresbestenwertung!C9 -> Rüdiger Winter | K6: 0
A7: 6 | B7: =Jahresbestenwertung!C10 -> Patric Mende | C7: 10 | D7: 9 | E7: 4 | F7: 9 | G7: 8 | H7: 7 | K7: 47
A8: 7 | B8: =Jahresbestenwertung!C11 -> Peter Gremler | C8: 9 | D8: 9 | E8: 8 | F8: 10 | G8: 7 | H8: 7 | K8: 50
A9: 8 | B9: =Jahresbestenwertung!C13 -> Stefan Sommer | C9: 10 | D9: 9 | E9: 8 | F9: 8 | G9: 8 | H9: 7 | K9: 50
A10: 9 | B10: =Jahresbestenwertung!C14 -> Thomas Schleese | C10: 9 | D10: 7 | E10: 5 | F10: 10 | G10: 9 | H10: 8 | K10: 48
A11: 10 | B11: =Jahresbestenwertung!C15 -> Robert Finkentey | C11: 7 | D11: 9 | E11: 8 | F11: 10 | G11: 10 | H11: 3 | K11: 47
A12: 11 | B12: =Jahresbestenwertung!C16 -> Dennis Sommer | C12: 10 | D12: 8 | E12: 8 | F12: 10 | G12: 10 | H12: 9 | K12: 55
A13: 12 | B13: =Jahresbestenwertung!C18 -> Manfred Weber | K13: 0
A14: 13 | B14: =Jahresbestenwertung!C19 -> Werner Schumacher | K14: 0
A15: 14 | B15: =Jahresbestenwertung!C20 -> Michael Deutenberg | C15: 8 | D15: 7 | E15: 7 | F15: 8 | G15: 7 | H15: 4 | K15: 41
A16: 15 | B16: =Jahresbestenwertung!C21 -> Manfred Hofmann | C16: 9 | D16: 6 | E16: 4 | F16: 9 | G16: 9 | H16: 7 | K16: 44
A17: 16 | B17: =Jahresbestenwertung!C22 -> Sascha Hofmann | C17: 9 | D17: 8 | E17: 6 | F17: 9 | G17: 6 | H17: 6 | K17: 44
A18: 17 | B18: =Jahresbestenwertung!C23 -> Gerhard Holz | K18: 0
A19: 18 | B19: =Jahresbestenwertung!C24 -> Jörg Krieg | K19: 0
A20: 19 | B20: =Jahresbestenwertung!C25 -> Martin Sieg | K20: 0
A21: 20 | B21: =Jahresbestenwertung!C26 -> Kai Schindler | K21: 0
A22: 21 | B22: =Jahresbestenwertung!C27 -> Manfred Schindler | K22: 0
A23: 22 | B23: =Jahresbestenwertung!C28 -> Frank Sommer | K23: 0
A24: 23 | B24: =Jahresbestenwertung!C30 -> Hermann v d Bey | K24: 0
A25: 24 | B25: =Jahresbestenwertung!C31 -> Gerd Weber | K25: 0
A26: 25 | B26: =Jahresbestenwertung!C32 -> Fabian Grönke | K26: 0
A27: 26 | B27: =Jahresbestenwertung!C33 -> Kevin Sieg | K27: 0
A28: 27 | B28: Nicolas Gawlita | C28: 8 | D28: 5 | E28: 6 | F28: 9 | G28: 8 | H28: 6 | K28: 42
A29: 28 | B29: =Jahresbestenwertung!C38 -> Bernd Karbach | K29: 0

Sheet Chef
A1: Lfd. Nr. | B1: Name | C1: Schüsse aufgelegt | angelegt |stechen | K1: ∑ | L1: Bemerkungen (Stechen)
A2: 1 | B2: =Jahresbestenwertung!C5 -> Benno Sommer | C2: 10 | D2: 10 | E2: 6 | F2: 9 | G2: 9 | H2: 7 | K2: 51
A3: 2 | B3: =Jahresbestenwertung!C6 -> Brian Gremler | C3: 10 | D3: 8 | E3: 8 | F3: 8 | G3: 8 | H3: 7 | K3: =SUM(C3:H3) -> 49
A4: 3 | B4: =Jahresbestenwertung!C7 -> Frank Holz | C4: 9 | D4: 9 | E4: 9 | F4: 10 | G4: 10 | H4: 9 | K4: 56
A5: 4 | B5: =Jahresbestenwertung!C8 -> Christian Breuer | K5: =SUM(C5:H5) -> 0
A6: 5 | B6: =Jahresbestenwertung!C9 -> Rüdiger Winter | K6: 0
A7: 6 | B7: =Jahresbestenwertung!C10 -> Patric Mende | C7: 9 | D7: 8 | E7: 8 | F7: 7 | G7: 6 | H7: 3 | K7: 41
A8: 7 | B8: =Jahresbestenwertung!C11 -> Peter Gremler | C8: 9 | D8: 7 | E8: 7 | F8: 8 | G8: 8 | H8: 7 | K8: =SUM(C8:H8) -> 46
A9: 8 | B9: =Jahresbestenwertung!C13 -> Stefan Sommer | C9: 10 | D9: 10 | E9: 8 | F9: 9 | G9: 7 | H9: 3 | K9: 47
A10: 9 | B10: =Jahresbestenwertung!C14 -> Thomas Schleese | C10: 6 | D10: 7 | E10: 7 | F10: 9 | G10: 8 | H10: 7 | K10: 44
A11: 10 | B11: =Jahresbestenwertung!C15 -> Robert Finkentey | C11: 7 | D11: 7 | E11: 6 | F11: 8 | G11: 8 | H11: 7 | K11: 43
A12: 11 | B12: =Jahresbestenwertung!C16 -> Dennis Sommer | C12: 9 | D12: 9 | E12: 8 | F12: 10 | G12: 9 | H12: 5 | K12: 50
A13: 12 | B13: =Jahresbestenwertung!C18 -> Manfred Weber | K13: 0
A14: 13 | B14: =Jahresbestenwertung!C19 -> Werner Schumacher | K14: 0
A15: 14 | B15: =Jahresbestenwertung!C20 -> Michael Deutenberg | C15: 6 | D15: 5 | E15: 3 | F15: 9 | G15: 7 | H15: 5 | K15: 35
A16: 15 | B16: =Jahresbestenwertung!C21 -> Manfred Hofmann | C16: 10 | D16: 10 | E16: 7 | F16: 7 | G16: 7 | H16: 5 | K16: 46
A17: 16 | B17: =Jahresbestenwertung!C22 -> Sascha Hofmann | C17: 9 | D17: 8 | E17: 8 | F17: 9 | G17: 7 | H17: 3 | K17: 44
A18: 17 | B18: =Jahresbestenwertung!C23 -> Gerhard Holz | K18: 0
A19: 18 | B19: =Jahresbestenwertung!C24 -> Jörg Krieg | K19: 0
A20: 19 | B20: =Jahresbestenwertung!C25 -> Martin Sieg | K20: 0
A21: 20 | B21: =Jahresbestenwertung!C26 -> Kai Schindler | K21: 0
A22: 21 | B22: =Jahresbestenwertung!C27 -> Manfred Schindler | K22: 0
A23: 22 | B23: =Jahresbestenwertung!C28 -> Frank Sommer | K23: 0
A24: 23 | B24: =Jahresbestenwertung!C30 -> Hermann v d Bey | K24: 0
A25: 24 | B25: =Jahresbestenwertung!C31 -> Gerd Weber | K25: 0
A26: 25 | B26: =Jahresbestenwertung!C32 -> Fabian Grönke | K26: 0
A27: 26 | B27: =Jahresbestenwertung!C33 -> Kevin Sieg | K27: 0
A28: 27 | B28: Nicolas Gawlita | C28: 9 | D28: 8 | E28: 6 | F28: 9 | G28: 8 | H28: 5 | K28: 45
A29: 28 | B29: =Jahresbestenwertung!C38 -> Bernd Karbach | K29: 0

Sheet Hauptm.
A1: Lfd. Nr. | B1: Name | C1: Schüsse aufgelegt | angelegt |stechen | K1: ∑ | L1: Bemerkungen (Stechen)
A2: 1 | B2: =Jahresbestenwertung!C5 -> Benno Sommer | C2: 9 | D2: 7 | E2: 6 | F2: 10 | G2: 8 | H2: 6 | K2: 46
A3: 2 | B3: =Jahresbestenwertung!C6 -> Brian Gremler | C3: 10 | D3: 9 | E3: 7 | F3: 10 | G3: 8 | H3: 8 | K3: =SUM(C3:H3) -> 52
A4: 3 | B4: =Jahresbestenwertung!C7 -> Frank Holz | C4: 8 | D4: 8 | E4: 7 | F4: 9 | G4: 9 | H4: 8 | K4: 49
A5: 4 | B5: =Jahresbestenwertung!C9 -> Rüdiger Winter | C5: 6 | D5: 6 | E5: 7 | F5: 6 | G5: 8 | H5: 7 | K5: 40
A6: 5 | B6: =Jahresbestenwertung!C10 -> Patric Mende | C6: 9 | D6: 8 | E6: 8 | F6: 10 | G6: 9 | H6: 8 | K6: 52
A7: 6 | B7: =Jahresbestenwertung!C11 -> Peter Gremler | C7: 10 | D7: 8 | E7: 5 | F7: 10 | G7: 6 | H7: 5 | K7: 44
A8: 7 | B8: =Jahresbestenwertung!C13 -> Stefan Sommer | C8: 10 | D8: 8 | E8: 6 | F8: 9 | G8: 8 | H8: 8 | K8: 49
A9: 8 | B9: =Jahresbestenwertung!C14 -> Thomas Schleese | C9: 10 | D9: 9 | E9: 9 | F9: 9 | G9: 8 | H9: 8 | K9: 53
A10: 9 | B10: =Jahresbestenwertung!C15 -> Robert Finkentey | K10: 0
A11: 10 | B11: =Jahresbestenwertung!C16 -> Dennis Sommer | C11: 10 | D11: 9 | E11: 8 | F11: 10 | G11: 10 | H11: 8 | K11: 55
A12: 11 | B12: =Jahresbestenwertung!C18 -> Manfred Weber | K12: 0
A13: 12 | B13: =Jahresbestenwertung!C19 -> Werner Schumacher | C13: 10 | D13: 8 | E13: 7 | F13: 9 | G13: 5 | H13: 5 | K13: 44
A14: 13 | B14: =Jahresbestenwertung!C20 -> Michael Deutenberg | K14: 0
A15: 14 | B15: =Jahresbestenwertung!C21 -> Manfred Hofmann | K15: 0
A16: 15 | B16: =Jahresbestenwertung!C22 -> Sascha Hofmann | K16: 0
A17: 16 | B17: =Jahresbestenwertung!C23 -> Gerhard Holz | K17: =SUM(C17:H17) -> 0
A18: 17 | B18: =Jahresbestenwertung!C24 -> Jörg Krieg | K18: =SUM(C18:H18) -> 0
A19: 18 | B19: =Jahresbestenwertung!C25 -> Martin Sieg | K19: 0
A20: 19 | B20: =Jahresbestenwertung!C26 -> Kai Schindler | K20: 0
A21: 20 | B21: =Jahresbestenwertung!C27 -> Manfred Schindler | K21: 0
A22: 21 | B22: =Jahresbestenwertung!C28 -> Frank Sommer | K22: 0
A23: 22 | B23: =Jahresbestenwertung!C30 -> Hermann v d Bey | K23: 0
A24: 23 | B24: =Jahresbestenwertung!C31 -> Gerd Weber | K24: 0
A25: 24 | B25: =Jahresbestenwertung!C32 -> Fabian Grönke | K25: 0
A26: 25 | B26: =Jahresbestenwertung!C33 -> Kevin Sieg | K26: 0
A27: 26 | B27: Nicolas Gawlita | C27: 8 | D27: 8 | E27: 5 | F27: 9 | G27: 6 | H27: 6 | K27: 42
A28: 27 | B28: =Jahresbestenwertung!C38 -> Bernd Karbach | K28: 0
A29: 28 | B29: Manuel Herbrand | C29: 9 | D29: 7 | E29: 6 | F29: 10 | G29: 7 | H29: 8 | K29: 47
A30: 29 | B30: Stefan Schmidt | C30: 9 | D30: 7 | E30: 7 | F30: 8 | G30: 5 | H30: 6 | K30: 42

Sheet G.H.- Damen
A1: Lfd. Nr. | B1: Name | C1: abgegebene Schüsse | K1: ∑ | L1: Bemerkungen (Stechen)
A2: 1 | B2: Claudia Schindler | C2: 9 | D2: 9 | E2: 9 | F2: 6 | G2: 6 | K2: =SUM(C2:J2) -> 39
A3: 2 | B3: Renate Schumacher | C3: 1 | D3: 1 | E3: 4 | F3: 4 | G3: 8 | K3: =SUM(C3:J3) -> 18
A4: 3 | B4: Christa Mackethun | C4: 1 | D4: 2 | K4: 3
A5: 4 | B5: Andrea Krieg | C5: 2 | D5: 2 | E5: 1 | F5: 10 | G5: 7 | K5: 22
A6: 5 | B6: Michelle Krieg | C6: 4 | D6: 6 | E6: 8 | F6: 7 | G6: 7 | K6: 32
A7: 6 | B7: Judy Scherf-Schleese | C7: 4 | D7: 6 | E7: 7 | F7: 7 | G7: 8 | K7: 32
A8: 7 | B8: Daniela Sommer | C8: 8 | D8: 7 | E8: 9 | F8: 8 | G8: 7 | K8: 39
A9: 8 | B9: Jessica Golnik | C9: 8 | D9: 9 | E9: 6 | F9: 5 | G9: 3 | K9: 31
A10: 9 | K10: 0
A11: 10 | K11: 0
A12: 11 | K12: 0
A13: 12 | K13: 0
A14: 13 | K14: 0
A15: 14 | K15: 0
A16: 15 | K16: 0
A17: 16 | K17: 0
A18: 17
A19: 18
A20: 19
A21: 20
A22: 21
A23: 22
A24: 23
A25: 24
A26: 25
A27: 26
A28: 27
A29: 28
A30: 29
A31: 30
A32: 31
A33: 32
A34: 33
A35: 34

Sheet Glücks
A1: Lfd. Nr. | B1: Name | C1: abgegebene Schüsse | J1: ∑ | K1: Bemerkungen (Stechen)
A2: 1 | B2: =Jahresbestenwertung!C5 -> Benno Sommer | K2: 20
A3: 2 | B3: =Jahresbestenwertung!C6 -> Brian Gremler | K3: 190/1
A4: 3 | B4: =Jahresbestenwertung!C7 -> Frank Holz | K4: 180/2
A5: 4 | B5: =Jahresbestenwertung!C8 -> Christian Breuer
A6: 5 | B6: =Jahresbestenwertung!C9 -> Rüdiger Winter
A7: 6 | B7: =Jahresbestenwertung!C10 -> Patric Mende | K7: 60
A8: 7 | B8: =Jahresbestenwertung!C11 -> Peter Gremler | K8: 70
A9: 8 | B9: =Jahresbestenwertung!C13 -> Stefan Sommer | K9: 60
A10: 9 | B10: =Jahresbestenwertung!C14 -> Thomas Schleese | K10: 130/3
A11: 10 | B11: =Jahresbestenwertung!C15 -> Robert Finkentey
A12: 11 | B12: =Jahresbestenwertung!C16 -> Dennis Sommer | K12: 180/2
A13: 12 | B13: =Jahresbestenwertung!C18 -> Manfred Weber
A14: 13 | B14: =Jahresbestenwertung!C19 -> Werner Schumacher
A15: 14 | B15: =Jahresbestenwertung!C20 -> Michael Deutenberg | K15: 10
A16: 15 | B16: =Jahresbestenwertung!C21 -> Manfred Hofmann | K16: 30
A17: 16 | B17: =Jahresbestenwertung!C22 -> Sascha Hofmann | K17: 0
A18: 17 | B18: =Jahresbestenwertung!C23 -> Gerhard Holz
A19: 18 | B19: =Jahresbestenwertung!C24 -> Jörg Krieg
A20: 19 | B20: =Jahresbestenwertung!C25 -> Martin Sieg
A21: 20 | B21: =Jahresbestenwertung!C26 -> Kai Schindler
A22: 21 | B22: =Jahresbestenwertung!C27 -> Manfred Schindler
A23: 22 | B23: =Jahresbestenwertung!C28 -> Frank Sommer
A24: 23 | B24: =Jahresbestenwertung!C30 -> Hermann v d Bey
A25: 24 | B25: =Jahresbestenwertung!C31 -> Gerd Weber
A26: 25 | B26: =Jahresbestenwertung!C32 -> Fabian Grönke
A27: 26 | B27: =Jahresbestenwertung!C33 -> Kevin Sieg
A28: 27 | B28: Nicolas Gawlita | K28: 70
A29: 28 | B29: =Jahresbestenwertung!C38 -> Bernd Karbach

Sheet B.S. Duell
A1: Duell - Luftpistole | B1: Duell - Luftgewehr | C1: Duell - Luftpistole | D1: Duell - Luftgewehr | E1: Pokalsieger
A21: Duell - Luftgewehr | B21: Duell - Kleinkaliber | C21: Duell - Luftgewehr | D21: Duell - Kleinkaliber | E21: Duell - Luftgewehr | F21: Duell - Kleinkaliber | G21: Duell - Luftgewehr | H21: Duell - Kleinkaliber
A22: 9 | B22: 9 | C22: 5 | D22: 3 | E22: 2
A23: 9
A24: 10 | B24: 10
A25: 10
A26: 11 | B26: 11 | C26: 6
A27: 11
A28: 12 | B28: 12
A29: 12
A30: 13 | B30: 13 | C30: 7 | D30: 4
A31: 13
A32: 14 | B32: 14
A33: 14
A34: 15 | B34: 15 | C34: 8
A35: 15
A36: 16 | B36: 16
A37: 16

Sheet Endergebniss 2022
B1: Jahreswertung 2022
C2: Pokal | D2: Brückmann | E2: M-Kierek | F2: Jubil. | G2: L-Sinner | H2: Chef | I2: Haupt | J2: Gesamt | K2: Wertung | L2: Nadel | M2: Goldenes
A3: Rg. | B3: Vj. | C3: Reihenfolge | D3: 1 | E3: 2 | F3: 3 | G3: 4 | H3: 5 | I3: 6 | M3: Gewehr
C4: Monat | D4: April | E4: April | F4: Sept. | G4: Sept. | H4: Sept. | I4: Nov. | J4: Ergebnis
A5: =RANK(K5,$K$5:$K$32) -> 1 | B5: 3 | C5: Frank Holz | D5: 55 | E5: 53 | F5: 52 | G5: 52 | H5: 56 | I5: 49 | J5: =SUM(D5:I5) -> 317 | K5: =SUM(D5:I5)-(SMALL(D5:I5,1)+(SMALL(D5:I5,2))) -> 216 | L5: =IF(K5>=210,"Gold",IF(K5>=200,"Silber",IF(K5>=185,"Bronze",""))) -> Gold | M5: 2001
A6: =RANK(K6,$K$5:$K$32) -> 2 | B6: 6 | C6: Patric Mende | D6: 54 | E6: 54 | F6: 54 | G6: 47 | H6: 41 | I6: 52 | J6: =SUM(D6:I6) -> 302 | K6: =SUM(D6:I6)-(SMALL(D6:I6,1)+(SMALL(D6:I6,2))) -> 214 | L6: =IF(K6>=210,"Gold",IF(K6>=200,"Silber",IF(K6>=185,"Bronze",""))) -> Gold | M6: 2001
A7: =RANK(K7,$K$5:$K$32) -> 3 | B7: 12 | C7: Dennis Sommer | D7: 50 | E7: 41 | F7: 52 | G7: 55 | H7: 50 | I7: 55 | J7: =SUM(D7:I7) -> 303 | K7: =SUM(D7:I7)-(SMALL(D7:I7,1)+(SMALL(D7:I7,2))) -> 212 | L7: =IF(K7>=210,"Gold",IF(K7>=200,"Silber",IF(K7>=185,"Bronze",""))) -> Gold | M7: 1999
A8: =RANK(K8,$K$5:$K$32) -> 4 | B8: 2 | C8: Brian Gremler | D8: 53 | E8: 54 | F8: 52 | G8: 52 | H8: 49 | I8: 52 | J8: =SUM(D8:I8) -> 312 | K8: =SUM(D8:I8)-(SMALL(D8:I8,1)+(SMALL(D8:I8,2))) -> 211 | L8: =IF(K8>=210,"Gold",IF(K8>=200,"Silber",IF(K8>=185,"Bronze",""))) -> Gold
A9: =RANK(K9,$K$5:$K$32) -> 5 | B9: 1 | C9: Benno Sommer | D9: 48 | E9: 54 | F9: 50 | G9: 50 | H9: 51 | I9: 46 | J9: =SUM(D9:I9) -> 299 | K9: =SUM(D9:I9)-(SMALL(D9:I9,1)+(SMALL(D9:I9,2))) -> 205 | L9: =IF(K9>=210,"Gold",IF(K9>=200,"Silber",IF(K9>=185,"Bronze",""))) -> Silber | M9: 1998
A10: =RANK(K10,$K$5:$K$32) -> 5 | B10: 9 | C10: Stefan Sommer | D10: 50 | E10: 55 | F10: 50 | G10: 50 | H10: 47 | I10: 49 | J10: =SUM(D10:I10) -> 301 | K10: =SUM(D10:I10)-(SMALL(D10:I10,1)+(SMALL(D10:I10,2))) -> 205 | L10: =IF(K10>=210,"Gold",IF(K10>=200,"Silber",IF(K10>=185,"Bronze",""))) -> Silber | M10: 2012
A11: =RANK(K11,$K$5:$K$32) -> 7 | B11: 10 | C11: Thomas Schleese | D11: 43 | E11: 49 | F11: 44 | G11: 48 | H11: 44 | I11: 53 | J11: =SUM(D11:I11) -> 281 | K11: =SUM(D11:I11)-(SMALL(D11:I11,1)+(SMALL(D11:I11,2))) -> 194 | L11: =IF(K11>=210,"Gold",IF(K11>=200,"Silber",IF(K11>=185,"Bronze",""))) -> Bronze | M11: 1999
A12: =RANK(K12,$K$5:$K$32) -> 8 | B12: 7 | C12: Peter Gremler | D12: 50 | E12: 41 | F12: 45 | G12: 50 | H12: 46 | I12: 44 | J12: =SUM(D12:I12) -> 276 | K12: =SUM(D12:I12)-(SMALL(D12:I12,1)+(SMALL(D12:I12,2))) -> 191 | L12: =IF(K12>=210,"Gold",IF(K12>=200,"Silber",IF(K12>=185,"Bronze",""))) -> Bronze | M12: 2015
A13: =RANK(K13,$K$5:$K$32) -> 9 | B13: 19 | C13: Nicolas Gawlita | D13: 47 | E13: 47 | F13: 44 | G13: 42 | H13: 45 | I13: 42 | J13: =SUM(D13:I13) -> 267 | K13: =SUM(D13:I13)-(SMALL(D13:I13,1)+(SMALL(D13:I13,2))) -> 183 | L13: =IF(K13>=210,"Gold",IF(K13>=200,"Silber",IF(K13>=185,"Bronze",""))) ->  | M13: 2015
A14: =RANK(K14,$K$5:$K$32) -> 10 | B14: 18 | C14: Sascha Hofmann | D14: 44 | E14: 47 | F14: 47 | G14: 44 | H14: 44 | I14: =Hauptm.!K20 -> 0 | J14: =SUM(D14:I14) -> 226 | K14: =SUM(D14:I14)-(SMALL(D14:I14,1)+(SMALL(D14:I14,2))) -> 182 | L14: =IF(K14>=210,"Gold",IF(K14>=200,"Silber",IF(K14>=185,"Bronze",""))) ->  | M14: 2018
A15: =RANK(K15,$K$5:$K$32) -> 11 | B15: 17 | C15: Manfred Hofmann | D15: 46 | E15: 44 | F15: 37 | G15: 44 | H15: 46 | I15: =Hauptm.!K19 -> 0 | J15: =SUM(D15:I15) -> 217 | K15: =SUM(D15:I15)-(SMALL(D15:I15,1)+(SMALL(D15:I15,2))) -> 180 | L15: =IF(K15>=210,"Gold",IF(K15>=200,"Silber",IF(K15>=185,"Bronze",""))) ->  | M15: 2003
A16: =RANK(K16,$K$5:$K$32) -> 12 | B16: 16 | C16: Michael Deutenberg | D16: =Brückmann!K15 -> 31 | E16: 38 | F16: 44 | G16: 41 | H16: 35 | I16: =Hauptm.!K16 -> 0 | J16: =SUM(D16:I16) -> 189 | K16: =SUM(D16:I16)-(SMALL(D16:I16,1)+(SMALL(D16:I16,2))) -> 158 | L16: =IF(K16>=210,"Gold",IF(K16>=200,"Silber",IF(K16>=185,"Bronze",""))) ->  | M16: 1998
A17: =RANK(K17,$K$5:$K$32) -> 13 | B17: 10 | C17: Robert Finkentey | D17: =Brückmann!K21 -> 0 | E17: ='Max Kierek'!K22 -> 0 | F17: 44 | G17: 47 | H17: 43 | I17: =Hauptm.!K22 -> 0 | J17: =SUM(D17:I17) -> 134 | K17: =SUM(D17:I17)-(SMALL(D17:I17,1)+(SMALL(D17:I17,2))) -> 134 | L17: =IF(K17>=210,"Gold",IF(K17>=200,"Silber",IF(K17>=185,"Bronze",""))) ->  | M17: 1999
A18: =RANK(K18,$K$5:$K$32) -> 14 | B18: 14 | C18: Manfred Weber | D18: 0 | E18: 0 | F18: 0 | G18: ='Leo Sinner'!K14 -> 0 | H18: =Chef!K14 -> 0 | I18: =Hauptm.!K13 -> 44 | J18: 0 | K18: =SUM(D18:I18)-(SMALL(D18:I18,1)+(SMALL(D18:I18,2))) -> 44 | L18: =IF(K18>=210,"Gold",IF(K18>=200,"Silber",IF(K18>=185,"Bronze",""))) ->  | M18: 2000
A19: =RANK(K19,$K$5:$K$32) -> 14 | B19: 15 | C19: Werner Schumacher | D19: 0 | E19: ='Max Kierek'!K13 -> 0 | G19: ='Leo Sinner'!K13 -> 0 | H19: =Chef!K13 -> 0 | I19: 44 | J19: =SUM(D19:I19) -> 44 | K19: =SUM(D19:I19)-(SMALL(D19:I19,1)+(SMALL(D19:I19,2))) -> 44 | L19: =IF(K19>=210,"Gold",IF(K19>=200,"Silber",IF(K19>=185,"Bronze",""))) ->  | M19: 1999
A20: =RANK(K20,$K$5:$K$32) -> 16 | B20: 19 | C20: Gerd Weber | D20: =Brückmann!K25 -> 0 | E20: ='Max Kierek'!K26 -> 0 | F20: =Jubiläums!K25 -> 0 | I20: =Hauptm.!K27 -> 42 | J20: =SUM(D20:I20) -> 42 | K20: =SUM(D20:I20)-(SMALL(D20:I20,1)+(SMALL(D20:I20,2))) -> 42 | L20: =IF(K20>=210,"Gold",IF(K20>=200,"Silber",IF(K20>=185,"Bronze",""))) -> 
A21: =RANK(K21,$K$5:$K$32) -> 17 | B21: 5 | C21: Rüdiger Winter | D21: 0 | E21: 0 | I21: 40 | J21: =SUM(D21:I21) -> 40 | K21: =SUM(D21:I21)-(SMALL(D21:I21,1)+(SMALL(D21:I21,2))) -> 40 | L21: =IF(K21>=210,"Gold",IF(K21>=200,"Silber",IF(K21>=185,"Bronze",""))) ->  | M21: 1998
B22: 4 | C22: Christian Breuer | J22: =SUM(D22:I22) -> 0 | L22: =IF(K22>=210,"Gold",IF(K22>=200,"Silber",IF(K22>=185,"Bronze",""))) ->  | M22: 1999
B23: 19 | C23: Gerhard Holz | D23: =Brückmann!K13 -> 0 | E23: ='Max Kierek'!K14 -> 0 | F23: =Jubiläums!K13 -> 0 | I23: =Hauptm.!K14 -> 0 | J23: =SUM(D23:I23) -> 0 | K23: =SUM(D23:I23)-(SMALL(D23:I23,1)+(SMALL(D23:I23,2))) -> 0 | L23: =IF(K23>=210,"Gold",IF(K23>=200,"Silber",IF(K23>=185,"Bronze",""))) ->  | M23: 2000
B24: 19 | C24: Jörg Krieg | D24: 0 | E24: 0 | G24: ='Leo Sinner'!K18 -> 0 | H24: =Chef!K18 -> 0 | I24: =Hauptm.!K17 -> 0 | J24: =SUM(D24:I24) -> 0 | K24: =SUM(D24:I24)-(SMALL(D24:I24,1)+(SMALL(D24:I24,2))) -> 0 | L24: =IF(K24>=210,"Gold",IF(K24>=200,"Silber",IF(K24>=185,"Bronze",""))) ->  | M24: 2010
B25: 19 | C25: Martin Sieg | D25: 0 | E25: ='Max Kierek'!K18 -> 0 | G25: ='Leo Sinner'!K19 -> 0 | H25: =Chef!K19 -> 0 | I25: =Hauptm.!K18 -> 0 | J25: =SUM(D25:I25) -> 0 | K25: =SUM(D25:I25)-(SMALL(D25:I25,1)+(SMALL(D25:I25,2))) -> 0 | L25: =IF(K25>=210,"Gold",IF(K25>=200,"Silber",IF(K25>=185,"Bronze",""))) ->  | M25: 1998
B26: 19 | C26: Kai Schindler | D26: =Brückmann!K20 -> 0 | E26: ='Max Kierek'!K21 -> 0 | F26: =Jubiläums!K20 -> 0 | G26: ='Leo Sinner'!K22 -> 0 | H26: =Chef!K22 -> 0 | I26: =Hauptm.!K21 -> 0 | J26: =SUM(D26:I26) -> 0 | K26: =SUM(D26:I26)-(SMALL(D26:I26,1)+(SMALL(D26:I26,2))) -> 0 | L26: =IF(K26>=210,"Gold",IF(K26>=200,"Silber",IF(K26>=185,"Bronze",""))) ->  | M26: 1998
B27: 19 | C27: Manfred Schindler | D27: =Brückmann!K22 -> 0 | E27: ='Max Kierek'!K23 -> 0 | F27: =Jubiläums!K22 -> 0 | G27: ='Leo Sinner'!K24 -> 0 | H27: =Chef!K24 -> 0 | I27: =Hauptm.!K23 -> 0 | J27: =SUM(D27:I27) -> 0 | K27: =SUM(D27:I27)-(SMALL(D27:I27,1)+(SMALL(D27:I27,2))) -> 0 | L27: =IF(K27>=210,"Gold",IF(K27>=200,"Silber",IF(K27>=185,"Bronze",""))) ->  | M27: 2001
B28: 19 | C28: Frank Sommer | D28: =Brückmann!K23 -> 0 | E28: ='Max Kierek'!K24 -> 0 | F28: =Jubiläums!K23 -> 0 | G28: ='Leo Sinner'!K25 -> 0 | H28: =Chef!K25 -> 0 | I28: =Hauptm.!K24 -> 0 | J28: =SUM(D28:I28) -> 0 | K28: =SUM(D28:I28)-(SMALL(D28:I28,1)+(SMALL(D28:I28,2))) -> 0 | L28: =IF(K28>=210,"Gold",IF(K28>=200,"Silber",IF(K28>=185,"Bronze",""))) ->  | M28: 2000
B29: 19 | C29: Hermann v d Bey | D29: =Brückmann!K24 -> 0 | E29: ='Max Kierek'!K25 -> 0 | F29: =Jubiläums!K24 -> 0 | G29: ='Leo Sinner'!K27 -> 0 | H29: =Chef!K27 -> 0 | I29: =Hauptm.!K26 -> 0 | J29: =SUM(D29:I29) -> 0 | K29: =SUM(D29:I29)-(SMALL(D29:I29,1)+(SMALL(D29:I29,2))) -> 0 | L29: =IF(K29>=210,"Gold",IF(K29>=200,"Silber",IF(K29>=185,"Bronze",""))) -> 
B30: 19 | C30: Fabian Grönke | D30: =Brückmann!K26 -> 0 | E30: ='Max Kierek'!K27 -> 0 | F30: =Jubiläums!K26 -> 0 | G30: ='Leo Sinner'!K29 -> 0 | H30: =Chef!K29 -> 0 | I30: =Hauptm.!K28 -> 0 | J30: =SUM(D30:I30) -> 0 | K30: =SUM(D30:I30)-(SMALL(D30:I30,1)+(SMALL(D30:I30,2))) -> 0 | L30: =IF(K30>=210,"Gold",IF(K30>=200,"Silber",IF(K30>=185,"Bronze",""))) -> 
B31: 19 | C31: Kevin Sieg | D31: =Brückmann!K27 -> 0 | E31: 0 | F31: =Jubiläums!K27 -> 0 | G31: 0 | H31: 0 | I31: 0 | J31: =SUM(D31:I31) -> 0 | K31: =SUM(D31:I31)-(SMALL(D31:I31,1)+(SMALL(D31:I31,2))) -> 0 | L31: =IF(K31>=210,"Gold",IF(K31>=200,"Silber",IF(K31>=185,"Bronze",""))) -> 
B32: 19 | C32: Bernd Karbach | D32: =Brückmann!K29 -> 0 | E32: 0 | F32: =Jubiläums!K29 -> 0 | G32: 0 | H32: 0 | I32: 0 | J32: =SUM(D32:I32) -> 0 | K32: 0 | L32: =IF(K32>=210,"Gold",IF(K32>=200,"Silber",IF(K32>=185,"Bronze",""))) -> 
C35: Gesamt | D35: =SUM(D5:D32) -> 571 | E35: 577 | F35: 615 | G35: 622 | H35: 597 | I35: 612 | J35: 3550 | K35: 2655
C36: Schützen | D36: =COUNTIF(D5:D32,">0") -> 12 | E36: 12 | F36: 13 | G36: 13 | H36: 13 | I36: 13 | J36: 16 | K36: =SUM(E36:I36)-MIN(E36:I36) -> 52
C37: Schnitt | D37: =D35/D36 -> 47.58333333 | E37: 48.08333333 | F37: 47.30769231 | G37: 47.84615385 | H37: 45.92307692 | I37: 47.07692308 | J37: 221.875 | K37: =K35/K36 -> 51.05769231
C39: Wertungsergebnis: | D39: 210 Ringe | E39: goldene | F39: Nadel | G39: Legende: | J39: fett-rot | K39: Sieger
D40: 200 Ringe | E40: silberne | F40: Nadel | J40: normal | K40: Ergebnis
D41: 185 Ringe | E41: bronzene | F41: Nadel | J41: kursiv | K41: vor bzw.
K42: nachgeschossen
C43: Stand | D43: =TODAY() -> 2022-12-05
